[Event "Rapid della Domenica"]
[Site "Chess.com"]
[Date "2020.05.24"]
[Round "2"]
[White "SanSecondoPR"]
[Black "Mrtre7"]
[Result "0-1"]
[WhiteElo "1302"]
[BlackElo "1417"]
[TimeControl "720+3"]
[EndTime "6:48:47 PDT"]
[Termination "Mrtre7 ha vinto per abbandono"]

1. e4 {[%clk 0:12:02.9]} 1... c5 {[%clk 0:12:01.1]} 2. d4 {[%clk 0:12:03.9]}
2... cxd4 {[%clk 0:12:02.1]} 3. Nf3 {[%clk 0:12:05.5]} 3... Nc6 {[%clk 0:11:34]}
4. Nxd4 {[%clk 0:12:03.4]} 4... g6 {[%clk 0:11:32]} 5. Nb3 {[%clk 0:12:00.7]}
5... Bg7 {[%clk 0:11:33.3]} 6. Qd2 {[%clk 0:11:54.3]} 6... Nf6 {[%clk 0:11:33]}
7. Nc3 {[%clk 0:11:50.8]} 7... O-O {[%clk 0:11:30]} 8. Bd3 {[%clk 0:11:50.4]}
8... d5 {[%clk 0:11:21.7]} 9. O-O {[%clk 0:11:43.5]} 9... dxe4 {[%clk
0:11:13.2]} 10. Nxe4 {[%clk 0:11:37.6]} 10... Nxe4 {[%clk 0:11:04.2]} 11. Bxe4
{[%clk 0:11:36.1]} 11... Qxd2 {[%clk 0:10:37]} 12. Nxd2 {[%clk 0:11:33.5]} 12...
Be6 {[%clk 0:10:14.1]} 13. c3 {[%clk 0:11:27.9]} 13... Rfd8 {[%clk 0:09:39.6]}
14. Nf3 {[%clk 0:11:22.3]} 14... Bc4 {[%clk 0:09:19.9]} 15. Re1 {[%clk
0:11:17.3]} 15... Rd7 {[%clk 0:08:36.6]} 16. Be3 {[%clk 0:10:56.4]} 16... f5
{[%clk 0:08:09.3]} 17. Bc2 {[%clk 0:10:31.6]} 17... e5 {[%clk 0:07:52.9]} 18. g3
{[%clk 0:09:53.4]} 18... Rad8 {[%clk 0:07:53]} 19. Bg5 {[%clk 0:08:53.6]} 19...
Re8 {[%clk 0:07:53.6]} 20. Nd4 {[%clk 0:08:29.5]} 20... Nxd4 {[%clk 0:07:42.8]}
21. cxd4 {[%clk 0:08:28]} 21... e4 {[%clk 0:07:44.7]} 22. Be3 {[%clk 0:07:58.8]}
22... Bxd4 {[%clk 0:07:38.5]} 23. Red1 {[%clk 0:07:42.5]} 23... Red8 {[%clk
0:06:18.9]} 24. b3 {[%clk 0:07:34.1]} 24... Be2 {[%clk 0:05:09.6]} 25. Rxd4
{[%clk 0:07:28.6]} 25... Rxd4 {[%clk 0:05:07.4]} 26. Bxd4 {[%clk 0:07:25.6]}
26... Rxd4 {[%clk 0:05:08.6]} 27. b4 {[%clk 0:07:04]} 27... Rxb4 {[%clk
0:04:50.7]} 28. Bb3+ {[%clk 0:07:02.4]} 28... Kg7 {[%clk 0:04:47.9]} 29. Rc1
{[%clk 0:06:52.1]} 29... a5 {[%clk 0:04:01.3]} 30. Rc7+ {[%clk 0:06:46.8]} 30...
Kh6 {[%clk 0:04:00.2]} 31. Rc3 {[%clk 0:06:25]} 31... a4 {[%clk 0:03:25.7]} 32.
Bc2 {[%clk 0:06:08.8]} 32... Rd4 {[%clk 0:03:26.5]} 33. h4 {[%clk 0:05:48.6]}
33... b5 {[%clk 0:03:22.4]} 34. Re3 {[%clk 0:05:21.1]} 34... Bf3 {[%clk
0:03:10.4]} 35. Kh2 {[%clk 0:05:15.4]} 35... Rd2 {[%clk 0:03:11.7]} 36. Rc3
{[%clk 0:05:01.9]} 36... Rxf2+ {[%clk 0:03:11.2]} 37. Kg1 {[%clk 0:04:47.5]}
37... Rg2+ {[%clk 0:03:02.5]} 38. Kf1 {[%clk 0:04:43.6]} 38... Rxg3 {[%clk
0:03:02.9]} 39. Bd1 {[%clk 0:04:17.6]} 39... Bg2+ {[%clk 0:02:56.4]} 0-1

[Event "Rapid della Domenica"]
[Site "Chess.com"]
[Date "2020.05.24"]
[Round "2"]
[White "toninoiuorio"]
[Black "pedrak"]
[Result "1-0"]
[WhiteElo "1464"]
[BlackElo "1679"]
[TimeControl "720+3"]
[EndTime "6:49:03 PDT"]
[Termination "toninoiuorio ha vinto per abbandono"]

1. d4 {[%clk 0:12:02.9]} 1... b6 {[%clk 0:11:59.3]} 2. c4 {[%clk 0:12:03.8]}
2... e6 {[%clk 0:11:58.5]} 3. a3 {[%clk 0:11:44.5]} 3... Bb7 {[%clk 0:11:59.5]}
4. d5 {[%clk 0:11:39.9]} 4... e5 {[%clk 0:11:51.3]} 5. Nc3 {[%clk 0:11:35.7]}
5... d6 {[%clk 0:11:50.1]} 6. g3 {[%clk 0:11:31.7]} 6... g6 {[%clk 0:11:43.7]}
7. Nf3 {[%clk 0:11:28.4]} 7... h6 {[%clk 0:11:44.5]} 8. Bh3 {[%clk 0:11:24.5]}
8... Bg7 {[%clk 0:11:44.4]} 9. Rb1 {[%clk 0:11:18.8]} 9... Ne7 {[%clk
0:11:43.8]} 10. Qc2 {[%clk 0:10:59.8]} 10... O-O {[%clk 0:11:37.7]} 11. b4
{[%clk 0:10:54.8]} 11... Bc8 {[%clk 0:11:30.6]} 12. Bg2 {[%clk 0:10:46.5]} 12...
f5 {[%clk 0:11:11.1]} 13. O-O {[%clk 0:10:38.7]} 13... Nd7 {[%clk 0:11:03.7]}
14. e3 {[%clk 0:10:31.4]} 14... Nf6 {[%clk 0:10:54.4]} 15. h3 {[%clk 0:10:20.9]}
15... Bd7 {[%clk 0:10:33.7]} 16. Nd2 {[%clk 0:10:12.8]} 16... Qe8 {[%clk
0:10:16]} 17. Re1 {[%clk 0:09:56.2]} 17... g5 {[%clk 0:10:02]} 18. a4 {[%clk
0:09:45.8]} 18... Kh8 {[%clk 0:09:18.3]} 19. c5 {[%clk 0:09:36.8]} 19... Ng6
{[%clk 0:08:57]} 20. Bb2 {[%clk 0:09:27.6]} 20... Qf7 {[%clk 0:08:50.4]} 21.
cxd6 {[%clk 0:09:17.6]} 21... cxd6 {[%clk 0:08:51.1]} 22. Rbc1 {[%clk
0:09:09.5]} 22... Rac8 {[%clk 0:08:42.4]} 23. b5 {[%clk 0:09:01.9]} 23... Ne7
{[%clk 0:08:04.3]} 24. Qb3 {[%clk 0:08:52.9]} 24... f4 {[%clk 0:07:58.7]} 25.
gxf4 {[%clk 0:08:39.9]} 25... exf4 {[%clk 0:07:40.8]} 26. exf4 {[%clk
0:08:24.8]} 26... gxf4 {[%clk 0:07:40]} 27. Nce4 {[%clk 0:08:06.7]} 27... Nxe4
{[%clk 0:07:27.2]} 28. Bxe4 {[%clk 0:07:59.3]} 28... Bxb2 {[%clk 0:06:48.7]} 29.
Qxb2+ {[%clk 0:07:53.3]} 29... Qg7+ {[%clk 0:06:50.1]} 30. Qxg7+ {[%clk
0:07:44.2]} 30... Kxg7 {[%clk 0:06:51.6]} 31. Nc4 {[%clk 0:07:44.6]} 31... Bxh3
{[%clk 0:06:27.8]} 32. Nxd6 {[%clk 0:07:31.2]} 32... Rxc1 {[%clk 0:06:28.6]} 33.
Rxc1 {[%clk 0:07:26.2]} 33... Kf6 {[%clk 0:06:28.1]} 34. Rc3 {[%clk 0:07:19.7]}
34... Bg4 {[%clk 0:06:08.8]} 35. f3 {[%clk 0:07:12.6]} 35... Nc8 {[%clk
0:05:23.5]} 36. Nb7 {[%clk 0:05:42.7]} 36... Bh5 {[%clk 0:04:38.5]} 37. d6
{[%clk 0:05:28.3]} 37... Nxd6 {[%clk 0:03:55.2]} 38. Nxd6 {[%clk 0:05:20.7]}
38... Ke5 {[%clk 0:03:57.1]} 39. Nc4+ {[%clk 0:05:06.7]} 39... Kd4 {[%clk
0:03:58.4]} 40. Rc2 {[%clk 0:04:56.1]} 40... Rg8+ {[%clk 0:03:52.6]} 41. Kf1
{[%clk 0:04:47.9]} 41... Rg3 {[%clk 0:03:52.8]} 42. Kf2 {[%clk 0:04:42.8]} 42...
Rh3 {[%clk 0:03:54.2]} 43. Nd2 {[%clk 0:04:32.2]} 43... Rh2+ {[%clk 0:03:50.9]}
44. Kf1 {[%clk 0:04:08.2]} 44... Rh1+ {[%clk 0:03:42.1]} 45. Kf2 {[%clk
0:04:03.8]} 45... Ra1 {[%clk 0:03:43.5]} 46. Nb3+ {[%clk 0:03:49]} 1-0

[Event "Rapid della Domenica"]
[Site "Chess.com"]
[Date "2020.05.24"]
[Round "2"]
[White "sirmale49"]
[Black "fausto2p"]
[Result "1-0"]
[WhiteElo "1394"]
[BlackElo "1191"]
[TimeControl "720+3"]
[EndTime "6:51:10 PDT"]
[Termination "sirmale49 ha vinto per abbandono"]

1. b3 {[%clk 0:12:00.4]} 1... d5 {[%clk 0:11:56.6]} 2. e3 {[%clk 0:12:01.9]}
2... Nf6 {[%clk 0:11:51.5]} 3. Nf3 {[%clk 0:12:03.6]} 3... c5 {[%clk 0:11:47]}
4. Bb2 {[%clk 0:12:04.2]} 4... Nc6 {[%clk 0:11:34.4]} 5. c4 {[%clk 0:12:05.2]}
5... e6 {[%clk 0:11:27.4]} 6. d4 {[%clk 0:12:02]} 6... cxd4 {[%clk 0:10:57.5]}
7. Nxd4 {[%clk 0:11:58.5]} 7... Bb4+ {[%clk 0:10:44.3]} 8. Bc3 {[%clk 0:11:46]}
8... Bxc3+ {[%clk 0:10:43.2]} 9. Nxc3 {[%clk 0:11:45.8]} 9... Qa5 {[%clk
0:10:36]} 10. Qc2 {[%clk 0:11:38.7]} 10... Nxd4 {[%clk 0:10:34.8]} 11. exd4
{[%clk 0:11:35.7]} 11... Ne4 {[%clk 0:10:27.5]} 12. Rc1 {[%clk 0:11:34.3]} 12...
O-O {[%clk 0:10:02.4]} 13. Bd3 {[%clk 0:11:35.2]} 13... Nxc3 {[%clk 0:09:47.1]}
14. Qxc3 {[%clk 0:11:33.7]} 14... Qxa2 {[%clk 0:09:39.5]} 15. O-O {[%clk
0:11:29.5]} 15... Qa3 {[%clk 0:08:59]} 16. Ra1 {[%clk 0:11:27.7]} 16... Qd6
{[%clk 0:08:55.5]} 17. c5 {[%clk 0:11:28.6]} 17... Qe7 {[%clk 0:08:28]} 18. f4
{[%clk 0:11:26.6]} 18... Bd7 {[%clk 0:08:25.2]} 19. Rf3 {[%clk 0:11:24.4]} 19...
a6 {[%clk 0:08:19.8]} 20. Rh3 {[%clk 0:11:15.6]} 20... h6 {[%clk 0:08:15.9]} 21.
Be2 {[%clk 0:10:51.9]} 21... Qf6 {[%clk 0:08:05.8]} 22. Rf3 {[%clk 0:10:13.7]}
22... Rfc8 {[%clk 0:07:52.8]} 23. Bd3 {[%clk 0:09:48.7]} 23... b6 {[%clk
0:07:46.4]} 24. Rxa6 {[%clk 0:09:23.2]} 24... Rxa6 {[%clk 0:07:42.5]} 25. Bxa6
{[%clk 0:09:24.7]} 25... Rc7 {[%clk 0:07:36]} 26. Be2 {[%clk 0:09:14.7]} 26...
bxc5 {[%clk 0:07:35.9]} 27. dxc5 {[%clk 0:09:13.2]} 27... Qxc3 {[%clk
0:07:25.1]} 28. Rxc3 {[%clk 0:09:12.2]} 28... Bc6 {[%clk 0:07:21.9]} 29. b4
{[%clk 0:09:04.3]} 29... Rb7 {[%clk 0:07:16.4]} 30. Rb3 {[%clk 0:08:59.7]} 30...
Kf8 {[%clk 0:06:48.5]} 31. Kf2 {[%clk 0:09:01.4]} 31... Ke7 {[%clk 0:06:49.1]}
32. Ke3 {[%clk 0:09:03]} 32... f6 {[%clk 0:06:44.9]} 33. g4 {[%clk 0:09:01.8]}
33... g6 {[%clk 0:06:29.2]} 34. h4 {[%clk 0:09:01.6]} 34... e5 {[%clk
0:06:25.1]} 35. fxe5 {[%clk 0:08:47.1]} 35... fxe5 {[%clk 0:06:25]} 36. b5
{[%clk 0:08:27.7]} 36... d4+ {[%clk 0:06:20.4]} 37. Kf2 {[%clk 0:08:23.2]} 37...
Be8 {[%clk 0:05:55.3]} 38. Bc4 {[%clk 0:08:21.9]} 38... Rc7 {[%clk 0:05:34.1]}
39. c6 {[%clk 0:08:16.3]} 39... Bf7 {[%clk 0:05:28.2]} 40. Bxf7 {[%clk
0:08:16.2]} 40... Kxf7 {[%clk 0:05:29]} 41. Kf3 {[%clk 0:08:16.3]} 41... Ke6
{[%clk 0:05:18.1]} 42. Ke4 {[%clk 0:08:17.5]} 42... Kd6 {[%clk 0:05:07.5]} 43.
h5 {[%clk 0:07:55.2]} 43... gxh5 {[%clk 0:04:59.9]} 44. gxh5 {[%clk 0:07:56]}
44... Rf7 {[%clk 0:04:51.7]} 45. Rg3 {[%clk 0:07:19.4]} 45... Rf4+ {[%clk
0:04:48.5]} 46. Kd3 {[%clk 0:07:18]} 46... Rf7 {[%clk 0:04:38.3]} 47. Rg6+
{[%clk 0:07:18.5]} 47... Kc5 {[%clk 0:04:38.2]} 48. Rxh6 {[%clk 0:07:09.1]}
48... Kxb5 {[%clk 0:04:39.5]} 49. Ke4 {[%clk 0:07:02.2]} 49... Re7 {[%clk
0:04:35.8]} 50. Rd6 {[%clk 0:06:45.6]} 50... Kc5 {[%clk 0:04:32.3]} 51. Rd8
{[%clk 0:06:34.6]} 51... Kxc6 {[%clk 0:04:29.7]} 52. h6 {[%clk 0:06:30]} 52...
Kc5 {[%clk 0:04:25.2]} 53. Rd5+ {[%clk 0:06:24.2]} 53... Kc4 {[%clk 0:04:00.4]}
54. Rxe5 {[%clk 0:06:23.7]} 54... Rh7 {[%clk 0:03:56.5]} 55. Re6 {[%clk
0:06:18.5]} 55... Kc3 {[%clk 0:03:52.4]} 56. Rc6+ {[%clk 0:06:17.9]} 56... Kb4
{[%clk 0:03:38.9]} 57. Kxd4 {[%clk 0:06:19.4]} 57... Kb5 {[%clk 0:03:39.6]} 58.
Rf6 {[%clk 0:06:17.3]} 58... Kb4 {[%clk 0:03:37.3]} 59. Ke5 {[%clk 0:06:17.4]}
59... Kc5 {[%clk 0:03:38.4]} 60. Kf5 {[%clk 0:06:19]} 60... Kd5 {[%clk
0:03:38.9]} 61. Kg6 {[%clk 0:06:20]} 61... Rh8 {[%clk 0:03:37.4]} 62. Kg7 {[%clk
0:06:16.7]} 62... Rb8 {[%clk 0:03:34.7]} 63. Rf7 {[%clk 0:06:10.4]} 63... Ke6
{[%clk 0:03:34.4]} 64. Ra7 {[%clk 0:06:09.6]} 64... Kf5 {[%clk 0:03:31.7]} 65.
h7 {[%clk 0:06:11.3]} 65... Ke6 {[%clk 0:03:28.3]} 66. h8=Q {[%clk 0:06:12.1]}
66... Rxh8 {[%clk 0:03:29]} 67. Kxh8 {[%clk 0:06:13.9]} 67... Kd5 {[%clk
0:03:29.1]} 68. Kg7 {[%clk 0:06:09.8]} 68... Ke5 {[%clk 0:03:28.8]} 69. Kf7
{[%clk 0:06:08.4]} 69... Kd5 {[%clk 0:03:29]} 70. Ra4 {[%clk 0:06:04.9]} 70...
Ke5 {[%clk 0:03:24]} 71. Ra6 {[%clk 0:06:01.3]} 71... Kd5 {[%clk 0:03:24.8]} 72.
Ke7 {[%clk 0:06:02.5]} 72... Ke5 {[%clk 0:03:25.7]} 73. Ra5+ {[%clk 0:06:03]}
73... Kd4 {[%clk 0:03:24.1]} 74. Ke6 {[%clk 0:06:04.2]} 74... Kc4 {[%clk
0:03:21.6]} 75. Kd6 {[%clk 0:06:05.6]} 75... Kb4 {[%clk 0:03:19.5]} 76. Rh5
{[%clk 0:06:06.5]} 76... Kc4 {[%clk 0:03:20.6]} 77. Rg5 {[%clk 0:06:04.9]} 77...
Kd4 {[%clk 0:03:16.3]} 78. Rg4+ {[%clk 0:06:06.3]} 78... Ke3 {[%clk 0:03:17.2]}
79. Kd5 {[%clk 0:06:07.1]} 79... Kf3 {[%clk 0:03:17.6]} 80. Ra4 {[%clk
0:06:08.2]} 80... Ke3 {[%clk 0:03:19.1]} 81. Rb4 {[%clk 0:06:08.7]} 81... Kf3
{[%clk 0:03:19.1]} 82. Ke5 {[%clk 0:06:09.5]} 82... Ke3 {[%clk 0:03:16.8]} 83.
Rb3+ {[%clk 0:06:10.3]} 1-0

[Event "Rapid della Domenica"]
[Site "Chess.com"]
[Date "2020.05.24"]
[Round "2"]
[White "Carbon"]
[Black "laremaro"]
[Result "1/2-1/2"]
[WhiteElo "1773"]
[BlackElo "1577"]
[TimeControl "720+3"]
[EndTime "6:51:26 PDT"]
[Termination "Partita patta per ripetizione di mosse"]

1. e4 {[%clk 0:11:56.7]} 1... d5 {[%clk 0:12:00.6]} 2. exd5 {[%clk 0:11:57.3]}
2... Qxd5 {[%clk 0:12:01.9]} 3. Nc3 {[%clk 0:11:59.1]} 3... Qd6 {[%clk
0:12:03.6]} 4. g3 {[%clk 0:12:01]} 4... e5 {[%clk 0:12:03.3]} 5. Bg2 {[%clk
0:12:01.4]} 5... Nc6 {[%clk 0:11:54.4]} 6. d3 {[%clk 0:11:42.1]} 6... Nf6 {[%clk
0:11:45.3]} 7. Nge2 {[%clk 0:11:40.2]} 7... Bg4 {[%clk 0:11:34.8]} 8. h3 {[%clk
0:11:28.3]} 8... Bf5 {[%clk 0:11:16.4]} 9. O-O {[%clk 0:11:23.5]} 9... Be7
{[%clk 0:10:51.7]} 10. Be3 {[%clk 0:11:08]} 10... Qd7 {[%clk 0:10:37.1]} 11. g4
{[%clk 0:10:57.2]} 11... Be6 {[%clk 0:10:26.4]} 12. Ng3 {[%clk 0:10:41.1]} 12...
Nd5 {[%clk 0:08:47.1]} 13. Nxd5 {[%clk 0:10:30.4]} 13... Bxd5 {[%clk 0:08:48.8]}
14. Ne4 {[%clk 0:10:18]} 14... O-O {[%clk 0:07:19.7]} 15. c4 {[%clk 0:07:57.4]}
15... Be6 {[%clk 0:07:08.3]} 16. Qe2 {[%clk 0:07:25.4]} 16... Rad8 {[%clk
0:05:40.8]} 17. Rad1 {[%clk 0:05:57.1]} 17... Nd4 {[%clk 0:05:29.6]} 18. Bxd4
{[%clk 0:05:40.9]} 18... Qxd4 {[%clk 0:05:15]} 19. Nc3 {[%clk 0:05:15.8]} 19...
c6 {[%clk 0:04:58.5]} 20. a3 {[%clk 0:05:10.6]} 20... a5 {[%clk 0:04:43.5]} 21.
Rfe1 {[%clk 0:04:51.7]} 21... f6 {[%clk 0:03:47.8]} 22. Qe3 {[%clk 0:04:30.9]}
22... Rfe8 {[%clk 0:03:36.2]} 23. Be4 {[%clk 0:03:32.1]} 23... Bf7 {[%clk
0:03:22]} 24. Rd2 {[%clk 0:03:21.4]} 24... Bxc4 {[%clk 0:02:48.9]} 25. Red1
{[%clk 0:03:02.3]} 25... Qxe3 {[%clk 0:02:44.6]} 26. fxe3 {[%clk 0:02:59.9]}
26... Bf7 {[%clk 0:02:43.5]} 27. Rc1 {[%clk 0:02:51]} 27... Bc5 {[%clk 0:02:42]}
28. Kf2 {[%clk 0:02:51]} 28... Ba7 {[%clk 0:02:34.9]} 29. Na4 {[%clk 0:02:36.7]}
29... Bd5 {[%clk 0:01:48.1]} 30. Nc3 {[%clk 0:01:59.3]} 30... Bf7 {[%clk
0:01:41.7]} 31. Na4 {[%clk 0:01:53.8]} 31... Bd5 {[%clk 0:01:40.6]} 32. Nc3
{[%clk 0:01:55.4]} 32... Bf7 {[%clk 0:01:42.1]} 1/2-1/2

[Event "Rapid della Domenica"]
[Site "Chess.com"]
[Date "2020.05.24"]
[Round "2"]
[White "APipitone"]
[Black "OMatteoWuO"]
[Result "1-0"]
[WhiteElo "1567"]
[BlackElo "1226"]
[TimeControl "720+3"]
[EndTime "6:52:15 PDT"]
[Termination "APipitone ha vinto per abbandono"]

1. e4 {[%clk 0:12:00.9]} 1... c5 {[%clk 0:12:00.7]} 2. Nf3 {[%clk 0:12:00.8]}
2... Nc6 {[%clk 0:12:00.1]} 3. d4 {[%clk 0:12:00.7]} 3... cxd4 {[%clk 0:11:58]}
4. Nxd4 {[%clk 0:12:00]} 4... Nf6 {[%clk 0:11:58]} 5. Nc3 {[%clk 0:11:57.3]}
5... d6 {[%clk 0:11:57.5]} 6. Bb5 {[%clk 0:11:52.9]} 6... Bd7 {[%clk 0:11:57.7]}
7. O-O {[%clk 0:11:51.4]} 7... a6 {[%clk 0:11:54.7]} 8. Be2 {[%clk 0:11:49]}
8... b5 {[%clk 0:11:54.9]} 9. a3 {[%clk 0:11:41.2]} 9... e6 {[%clk 0:11:52.5]}
10. Be3 {[%clk 0:11:34.1]} 10... Rc8 {[%clk 0:11:45.3]} 11. f4 {[%clk 0:11:31]}
11... Be7 {[%clk 0:11:26.2]} 12. Bf3 {[%clk 0:11:24.2]} 12... O-O {[%clk
0:11:02.5]} 13. Nde2 {[%clk 0:11:14]} 13... Qc7 {[%clk 0:10:14.8]} 14. Ng3
{[%clk 0:11:01.4]} 14... Na5 {[%clk 0:09:37.5]} 15. Be2 {[%clk 0:10:09.4]} 15...
Nc4 {[%clk 0:08:54.3]} 16. Bxc4 {[%clk 0:10:08]} 16... Qxc4 {[%clk 0:08:51.5]}
17. h3 {[%clk 0:09:56.4]} 17... d5 {[%clk 0:08:12.9]} 18. e5 {[%clk 0:09:50.2]}
18... Ne8 {[%clk 0:07:49.9]} 19. Qg4 {[%clk 0:09:32.6]} 19... d4 {[%clk
0:07:29.8]} 20. Nce4 {[%clk 0:08:49.3]} 20... dxe3 {[%clk 0:07:23.1]} 21. Nf6+
{[%clk 0:08:38.6]} 21... Bxf6 {[%clk 0:07:23.8]} 22. exf6 {[%clk 0:08:36.9]}
22... Nxf6 {[%clk 0:07:25.4]} 23. Qh4 {[%clk 0:08:17.4]} 23... e2 {[%clk
0:07:13.9]} 24. Rfe1 {[%clk 0:08:10]} 24... Qxc2 {[%clk 0:06:32.7]} 25. Rxe2
{[%clk 0:07:58.4]} 25... Qc5+ {[%clk 0:06:34]} 26. Kh2 {[%clk 0:07:51.7]} 26...
Qe7 {[%clk 0:06:02.1]} 27. Re5 {[%clk 0:07:29.8]} 27... Rc2 {[%clk 0:05:25.3]}
28. Nh5 {[%clk 0:06:33.5]} 28... Nxh5 {[%clk 0:05:24.8]} 29. Qxe7 {[%clk
0:06:32.2]} 29... Nxf4 {[%clk 0:05:16.4]} 30. Rg1 {[%clk 0:06:22.5]} 30... Ng6
{[%clk 0:04:50.7]} 31. Qxd7 {[%clk 0:06:14.5]} 31... Nxe5 {[%clk 0:04:50.3]} 32.
Qd1 {[%clk 0:05:57.1]} 32... Rxb2 {[%clk 0:04:38.2]} 33. Kh1 {[%clk 0:05:48.3]}
33... Rc8 {[%clk 0:04:03.1]} 34. Qd4 {[%clk 0:05:44]} 34... Re2 {[%clk
0:03:41.5]} 35. Rd1 {[%clk 0:05:21.3]} 35... h6 {[%clk 0:03:19]} 36. Qa7 {[%clk
0:04:48.7]} 36... Rcc2 {[%clk 0:03:07.5]} 37. Qxa6 {[%clk 0:04:21.1]} 37... Rxg2
{[%clk 0:03:02.8]} 38. Qa8+ {[%clk 0:04:19.2]} 38... Kh7 {[%clk 0:03:03.6]} 39.
Qxg2 {[%clk 0:04:17.9]} 39... Rxg2 {[%clk 0:03:01.3]} 40. Kxg2 {[%clk 0:04:18]}
40... Nc4 {[%clk 0:03:00.3]} 41. Rd3 {[%clk 0:04:12.4]} 41... Kg6 {[%clk
0:02:57.1]} 42. Rb3 {[%clk 0:04:09.7]} 42... Kf5 {[%clk 0:02:57.3]} 43. Rxb5+
{[%clk 0:04:08.8]} 43... Ke4 {[%clk 0:02:52.9]} 44. a4 {[%clk 0:04:08.2]} 44...
e5 {[%clk 0:02:45.9]} 45. Kf2 {[%clk 0:04:03]} 45... f5 {[%clk 0:02:44.5]} 46.
Ke2 {[%clk 0:03:59.6]} 46... g5 {[%clk 0:02:40.6]} 47. Rb4 {[%clk 0:03:58.3]}
47... Kd4 {[%clk 0:02:40.5]} 48. a5 {[%clk 0:03:55.1]} 48... e4 {[%clk
0:02:40.4]} 49. a6 {[%clk 0:03:52.2]} 49... Kc5 {[%clk 0:02:36.6]} 50. a7 {[%clk
0:03:44.8]} 50... f4 {[%clk 0:02:07.9]} 51. Rxc4+ {[%clk 0:03:24.1]} 51... Kxc4
{[%clk 0:02:08.3]} 52. a8=Q {[%clk 0:02:57.5]} 52... f3+ {[%clk 0:02:07.9]} 53.
Ke3 {[%clk 0:02:57.4]} 1-0

[Event "Rapid della Domenica"]
[Site "Chess.com"]
[Date "2020.05.24"]
[Round "3"]
[White "laremaro"]
[Black "crippo"]
[Result "0-1"]
[WhiteElo "1567"]
[BlackElo "1572"]
[TimeControl "720+3"]
[EndTime "6:59:06 PDT"]
[Termination "crippo ha vinto per abbandono"]

1. b3 {[%clk 0:12:01.5]} 1... e5 {[%clk 0:11:55.1]} 2. Bb2 {[%clk 0:12:01.8]}
2... Nc6 {[%clk 0:11:57.1]} 3. e3 {[%clk 0:12:03.4]} 3... d5 {[%clk 0:11:59.1]}
4. Bb5 {[%clk 0:12:05.6]} 4... Bd6 {[%clk 0:12:00.8]} 5. Nf3 {[%clk 0:12:07.3]}
5... f6 {[%clk 0:11:51.1]} 6. d4 {[%clk 0:11:56.4]} 6... e4 {[%clk 0:11:52]} 7.
Nh4 {[%clk 0:11:44.4]} 7... Ne7 {[%clk 0:11:48.3]} 8. g3 {[%clk 0:11:43.8]} 8...
O-O {[%clk 0:11:45.1]} 9. Qh5 {[%clk 0:11:44.7]} 9... Be6 {[%clk 0:11:39.1]} 10.
c4 {[%clk 0:11:39.7]} 10... Bf7 {[%clk 0:11:40.8]} 11. Qg4 {[%clk 0:11:33.3]}
11... a6 {[%clk 0:11:37.5]} 12. Bxc6 {[%clk 0:11:33.5]} 12... bxc6 {[%clk
0:11:37.9]} 13. Nf5 {[%clk 0:11:25.1]} 13... Nxf5 {[%clk 0:11:38.7]} 14. Qxf5
{[%clk 0:11:26.5]} 14... Bg6 {[%clk 0:11:40.2]} 15. Qg4 {[%clk 0:11:26.3]} 15...
f5 {[%clk 0:11:41]} 16. Qe2 {[%clk 0:11:26.9]} 16... Bb4+ {[%clk 0:11:41.9]} 17.
Nc3 {[%clk 0:11:09.8]} 17... Qg5 {[%clk 0:11:24.4]} 18. h4 {[%clk 0:11:08.8]}
18... Qh6 {[%clk 0:11:21.7]} 19. O-O {[%clk 0:10:46.3]} 19... Bh5 {[%clk
0:11:23.2]} 20. Qd2 {[%clk 0:10:44.8]} 20... Bf3 {[%clk 0:11:24.2]} 21. a3
{[%clk 0:10:38.7]} 21... Bxc3 {[%clk 0:11:25.1]} 22. Bxc3 {[%clk 0:10:30.6]}
22... Qh5 {[%clk 0:11:27.1]} 23. Rfb1 {[%clk 0:09:46.5]} 23... Qg4 {[%clk
0:11:24.1]} 24. Kh2 {[%clk 0:09:39.2]} 24... Rf6 {[%clk 0:11:24.3]} 25. Qe1
{[%clk 0:09:22.9]} 25... g5 {[%clk 0:11:24]} 26. Qf1 {[%clk 0:09:19]} 26... gxh4
{[%clk 0:11:25.9]} 27. Qh3 {[%clk 0:09:10]} 27... hxg3+ {[%clk 0:11:27.6]} 28.
Qxg3 {[%clk 0:09:09.6]} 28... Rh6+ {[%clk 0:11:27]} 0-1

[Event "Rapid della Domenica"]
[Site "Chess.com"]
[Date "2020.05.24"]
[Round "3"]
[White "sirmale49"]
[Black "APipitone"]
[Result "0-1"]
[WhiteElo "1389"]
[BlackElo "1602"]
[TimeControl "720+3"]
[EndTime "7:04:33 PDT"]
[Termination "APipitone ha vinto per abbandono"]

1. e4 {[%clk 0:11:39.3]} 1... c5 {[%clk 0:11:58.5]} 2. f4 {[%clk 0:11:40]} 2...
Nc6 {[%clk 0:11:57.9]} 3. Nf3 {[%clk 0:11:41.8]} 3... d6 {[%clk 0:11:58.6]} 4.
Nc3 {[%clk 0:11:41.4]} 4... e6 {[%clk 0:11:56.3]} 5. Bb5 {[%clk 0:11:42.6]} 5...
Bd7 {[%clk 0:11:53.6]} 6. O-O {[%clk 0:11:43.1]} 6... Nf6 {[%clk 0:11:45.4]} 7.
d3 {[%clk 0:11:43.6]} 7... Be7 {[%clk 0:11:40.9]} 8. a3 {[%clk 0:11:37.5]} 8...
O-O {[%clk 0:11:36.4]} 9. Be3 {[%clk 0:11:31.5]} 9... a6 {[%clk 0:11:36.5]} 10.
Bc4 {[%clk 0:11:31.3]} 10... Rb8 {[%clk 0:11:19.1]} 11. d4 {[%clk 0:11:22.9]}
11... cxd4 {[%clk 0:11:18.2]} 12. Nxd4 {[%clk 0:11:23]} 12... b5 {[%clk
0:11:00.6]} 13. Bb3 {[%clk 0:10:56.7]} 13... Nxd4 {[%clk 0:10:27.5]} 14. Bxd4
{[%clk 0:10:53.6]} 14... b4 {[%clk 0:10:27.8]} 15. Na4 {[%clk 0:09:59.3]} 15...
bxa3 {[%clk 0:10:12.2]} 16. bxa3 {[%clk 0:09:52.9]} 16... Bxa4 {[%clk
0:10:05.1]} 17. Bxa4 {[%clk 0:09:46.8]} 17... Nxe4 {[%clk 0:10:05.1]} 18. Re1
{[%clk 0:09:21.4]} 18... d5 {[%clk 0:09:49.2]} 19. c3 {[%clk 0:09:01.5]} 19...
Bf6 {[%clk 0:09:38.5]} 20. Qd3 {[%clk 0:08:54.6]} 20... Qa5 {[%clk 0:09:19.6]}
21. Bc2 {[%clk 0:08:48.2]} 21... Bxd4+ {[%clk 0:09:14.8]} 22. cxd4 {[%clk
0:08:36.6]} 22... Rb2 {[%clk 0:09:03.5]} 23. Reb1 {[%clk 0:08:03.5]} 23... Rfb8
{[%clk 0:08:59.3]} 24. Rxb2 {[%clk 0:07:59.9]} 24... Rxb2 {[%clk 0:08:58.5]} 25.
h3 {[%clk 0:07:57.9]} 25... Qc7 {[%clk 0:08:39.2]} 26. Rc1 {[%clk 0:07:44.3]}
26... g6 {[%clk 0:08:24.3]} 27. Qxa6 {[%clk 0:07:22.7]} 27... Qxf4 {[%clk
0:08:09.6]} 28. Bxe4 {[%clk 0:07:09]} 28... Qxc1+ {[%clk 0:08:02.4]} 0-1